bitfinex/quotes_SOLUSD_20250601
["timestamp","ask_amount","ask_price","bid_price","bid_amount"]
[1748741565652,14.46011788,155.99,155.96,22.44165169]
[1748741566450,14.46011788,155.97,155.96,6.41190048]
[1748741569294,14.46011788,155.98,155.96,6.41190048]
[1748741569453,149.0,156.02,155.96,22.44165169]
[1748741569769,14.46011788,156.0,155.96,22.44165169]
[1748741571644,14.46011788,155.99,155.96,22.44165169]
[1748741571956,14.46011788,155.98,155.96,22.44165169]
[1748741572162,14.46011788,155.97,155.96,6.41190048]
[1748741574675,14.46011788,155.98,155.96,6.41190048]
[1748741574862,14.46011788,155.97,155.96,6.41190048]
[1748741577360,14.46011788,155.97,155.94,6.41272284]
[1748741577566,14.46011788,156.0,155.94,6.41272284]
[1748741577567,14.46011788,155.96,155.94,6.41272284]
[1748741579667,14.46011788,155.95,155.93,6.41313409]
[1748741579864,14.46011788,155.94,155.93,6.41313409]
[1748741580376,14.46011788,155.95,155.93,6.41313409]
[1748741582265,14.46011788,155.94,155.93,6.41313409]
[1748741582457,14.46011788,155.95,155.93,6.41313409]
[1748741583167,14.46011788,155.97,155.93,22.44596933]
[1748741584377,39.36,155.98,155.93,22.44596933]
[1748741584378,14.46011788,155.96,155.93,22.44596933]
[1748741584581,14.46011788,155.95,155.93,22.44596933]
[1748741584877,14.46011788,155.94,155.93,6.41313409]
[1748741586179,14.46011788,155.94,155.91,6.41395676]
[1748741586366,14.46011788,155.93,155.91,6.41395676]
[1748741587767,14.46011788,155.92,155.91,6.41395676]
[1748741588888,14.46011788,155.92,155.89,6.41477965]
[1748741589091,14.46011788,155.9,155.89,6.41477965]
[1748741593494,14.46011788,155.91,155.89,22.45172878]
[1748741595695,14.46011788,155.9,155.88,16.65505966]
[1748741595865,14.46011788,155.89,155.85,6.41642605]
[1748741596065,14.46011788,155.86,155.85,6.41642605]
[1748741596282,14.46011788,155.87,155.85,22.45749117]
[1748741597095,14.46011788,155.86,155.85,6.41642605]
[1748741605204,14.46011788,155.86,155.83,6.41724956]
[1748741605404,39.36,155.9,155.83,6.41724956]
[1748741605405,14.46011788,155.84,155.83,6.41724956]
[1748741605590,14.46011788,155.85,155.83,6.41724956]
[1748741606198,14.46011788,155.87,155.83,22.46037347]
[1748741606604,14.46011788,155.88,155.83,22.46037347]
[1748741607309,14.46011788,155.88,155.83,54.5466213]
[1748741608780,39.38,155.91,155.83,54.5466213]
[1748741608781,14.46011788,155.87,155.83,54.5466213]
[1748741611904,14.46011788,155.87,155.84,10.24]
[1748741612325,14.46011788,155.87,155.85,6.41642605]
[1748741615910,14.46011788,155.88,155.85,22.45749117]
[1748741616125,14.46011788,155.92,155.89,26.0]
[1748741616294,14.46011788,155.93,155.89,26.0]
[1748741616691,14.46011788,155.92,155.89,26.0]
[1748741618592,14.46011788,155.92,155.9,6.41436818]
[1748741618793,61.09609668,155.97,155.9,6.41436818]
[1748741619111,14.46011788,155.94,155.9,22.45028864]
[1748741630104,61.09609668,155.97,155.9,22.45028864]
[1748741630105,14.46011788,155.92,155.9,22.45028864]
[1748741630513,14.46011788,155.92,155.9,6.41436818]
[1748741638501,14.46011788,155.92,155.89,16.03686593]
[1748741640324,14.46011788,155.91,155.88,6.41519117]
[1748741640506,14.46011788,155.9,155.88,6.41519117]
[1748741641026,39.34,155.93,155.87,16.63548608]
[1748741641027,14.46011788,155.89,155.87,16.63548608]
[1748741641207,14.46011788,155.88,155.87,16.63548608]
[1748741641409,14.46011788,155.88,155.87,6.41548608]
[1748741642038,14.46011788,155.88,155.86,6.41601437]
[1748741643106,14.46011788,155.89,155.86,6.41601437]
[1748741644130,14.46011788,155.89,155.86,6.30488498]
[1748741645216,14.46011788,155.91,155.86,22.3449209]
[1748741645832,14.46011788,155.92,155.86,22.3449209]
[1748741649424,14.46011788,155.93,155.88,48.4531691]
[1748741649624,14.46011788,155.92,155.88,48.4531691]
[1748741651631,14.46011788,155.93,155.88,48.4531691]
[1748741652215,14.46011788,155.92,155.88,48.4531691]
[1748741652837,14.46011788,155.91,155.88,32.41519117]
[1748741653014,14.46011788,155.89,155.88,6.41519117]
[1748741655237,14.46011788,155.9,155.88,6.41519117]
[1748741655431,14.46011788,155.91,155.88,6.41519117]
[1748741656521,14.46011788,155.91,155.88,22.4531691]
[1748741657021,14.46011788,155.92,155.88,22.4531691]
[1748741657905,14.46011788,155.91,155.88,6.41519117]
[1748741658111,14.46011788,155.9,155.88,6.41519117]
[1748741659237,14.46011788,155.89,155.88,6.41519117]
[1748741661511,39.34,155.93,155.88,6.41519117]
[1748741661732,14.46011788,155.9,155.88,6.41519117]
[1748741661915,14.46011788,155.89,155.87,16.63556379]
[1748741662640,14.46011788,155.88,155.86,6.41590564]
[1748741662832,14.46011788,155.87,155.86,6.41590564]
[1748741663135,14.46011788,155.87,155.81,1.6653]
[1748741663447,14.46011788,155.82,155.8,6.41848523]
[1748741663923,14.46011788,155.83,155.8,6.41848523]
[1748741664119,39.34,155.84,155.8,6.41848523]
[1748741664321,14.46011788,155.87,155.8,22.46469832]
[1748741664515,39.34,155.87,155.82,26.0]
[1748741664713,53.80011788,155.89,155.84,27.5505]
[1748741665125,14.46011788,155.88,155.84,27.5505]
[1748741665936,14.46011788,155.88,155.85,6.41642605]
[1748741666143,53.80011788,155.89,155.85,6.41642605]
[1748741666520,39.34,155.89,155.85,22.45749117]
[1748741667242,53.80011788,155.89,155.85,22.45749117]
[1748741667911,14.46011788,155.89,155.85,22.45749117]
[1748741671856,39.34,155.9,155.85,22.45749117]
[1748741672044,14.46011788,155.89,155.85,22.45749117]
[1748741672253,14.46011788,155.89,155.85,6.41642605]
[1748741672457,14.46011788,155.87,155.79,91.1323]
[1748741672744,14.46011788,155.85,155.8,10.22]
[1748741672926,53.80011788,155.85,155.81,26.0]
[1748741673440,39.34,155.85,155.81,26.0]
[1748741674238,14.46011788,155.86,155.82,6.4176614]
[1748741674543,14.46011788,155.85,155.82,6.4176614]
[1748741674939,39.34,155.86,155.82,22.46181491]
[1748741676326,53.80011788,155.86,155.82,22.46181491]
[1748741676935,14.46011788,155.86,155.82,22.46181491]
[1748741677352,53.80011788,155.87,155.82,22.46181491]
[1748741677733,14.46011788,155.87,155.82,22.46181491]
[1748741677941,14.46011788,155.86,155.82,22.46181491]
[1748741678458,14.46011788,155.85,155.82,6.4176614]
[1748741679248,14.46011788,155.83,155.8,10.22]
[1748741679550,14.46011788,155.83,155.8,16.63846246]
[1748741680137,14.46011788,155.82,155.8,16.63846246]
[1748741686147,39.34,155.84,155.8,16.63846246]
[1748741686350,14.46011788,155.82,155.8,16.63846246]
[1748741686531,14.46011788,155.83,155.8,16.63846246]
[1748741688747,14.46011788,155.82,155.8,16.63846246]
[1748741689957,14.46011788,155.82,155.8,6.41846246]
[1748741690150,53.80011788,155.81,155.78,7.29867081]
[1748741690351,14.46011788,155.8,155.78,7.29867081]
[1748741690858,53.80011788,155.81,155.78,7.29867081]
[1748741692857,14.46011788,155.8,155.78,7.29867081]
[1748741693860,14.46011788,155.8,155.78,0.8794066]
[1748741694848,14.46011788,155.8,155.78,7.29865499]
[1748741695643,14.46011788,155.79,155.78,0.8794066]
[1748741697967,20.87901511,155.79,155.78,0.8794066]
[1748741699363,21.16333825,155.79,155.72,16.64169851]
[1748741699564,14.46011788,155.73,155.72,16.64169851]
[1748741699763,14.46011788,155.73,155.72,6.42169851]
[1748741700260,14.46011788,155.73,155.7,26.0]
[1748741700462,14.46011788,155.71,155.7,6.42252787]
[1748741701166,14.46011788,155.71,155.68,10.22]
[1748741701367,14.46011788,155.7,155.68,16.64333039]
[1748741702674,14.46011788,155.69,155.68,16.64333039]
[1748741702968,14.46011788,155.69,155.68,6.42333039]
[1748741703172,14.46011788,155.69,155.68,5.92333039]
[1748741703670,53.80011788,155.69,155.6,26.28603712]
[1748741703879,14.46011788,155.65,155.61,6.42632221]
[1748741704076,14.46011788,155.66,155.61,22.49212774]
[1748741704263,14.46011788,155.66,155.62,26.0]
[1748741704444,14.46011788,155.65,155.61,6.42632221]
[1748741704648,11.10428097,155.71,155.61,6.42632221]
[1748741704649,39.36,155.66,155.61,6.42632221]
[1748741704858,53.82011788,155.66,155.61,22.49212774]
[1748741705588,14.46011788,155.65,155.61,22.49212774]
[1748741705883,14.46011788,155.65,155.61,16.06580553]
[1748741706248,39.36,155.66,155.61,16.06580553]
[1748741706443,53.82011788,155.66,155.61,16.06580553]
[1748741706648,149.28432314,155.71,155.61,42.06580553]
[1748741706649,53.82011788,155.67,155.61,42.06580553]
[1748741706951,14.46011788,155.67,155.61,42.06580553]
[1748741707377,14.46011788,155.66,155.61,42.06580553]
[1748741708690,14.46011788,155.66,155.62,1.5291]
[1748741709582,14.46011788,155.66,155.62,7.9198]
[1748741709761,14.46011788,155.65,155.62,7.9198]
[1748741710180,14.46011788,155.64,155.62,7.9198]
[1748741710460,14.46011788,155.63,155.62,1.5291]
[1748741711290,14.46011788,155.63,155.6,6.6232]
[1748741711468,14.46011788,155.61,155.59,6.42680247]
[1748741711670,14.46011788,155.6,155.58,10.46673048]
[1748741712177,14.46011788,155.59,155.58,2.53848853]
[1748741712667,14.74444102,155.59,155.58,2.53848853]
[1748741712874,21.17158929,155.59,155.58,2.53848853]
[1748741713687,24.31012206,155.59,155.58,2.53848853]
[1748741713892,17.88297379,155.59,155.58,2.53848853]
[1748741714077,14.74444102,155.59,155.58,2.53848853]
[1748741714800,10.22,155.63,155.58,2.53848853]
[1748741714988,14.60227945,155.59,155.58,2.53848853]
[1748741715187,14.74444102,155.59,155.58,2.53848853]
[1748741715389,18.933972,155.58,155.51,6.43043515]
[1748741715602,14.46011788,155.52,155.5,7.93154614]
[1748741716177,0.28432314,155.56,155.5,6.43074614]
[1748741716178,14.46011788,155.51,155.5,6.43074614]
[1748741716881,39.4,155.53,155.48,6.43162878]
[1748741717081,14.46011788,155.49,155.47,2.5236066]
[1748741717390,14.46011788,155.48,155.47,0.8794066]
[1748741718013,0.28432314,155.53,155.47,7.31151568]
[1748741718303,14.46011788,155.52,155.47,7.31151568]
[1748741718475,14.46011788,155.5,155.47,23.3917884]
[1748741718675,14.46011788,155.51,155.47,23.3917884]
[1748741719009,16.64673521,155.6,155.49,26.0]
[1748741719186,14.46011788,155.52,155.49,26.0]
[1748741720106,14.46011788,155.53,155.5,6.43086816]
[1748741720819,39.54,155.56,155.5,6.43086816]
[1748741720987,14.46011788,155.53,155.5,6.43086816]
[1748741722109,39.54,155.56,155.5,6.43086816]
[1748741722309,6.42789142,155.58,155.5,6.43086816]
[1748741722310,22.39686011,155.62,155.51,10.22]
[1748741722481,14.46011788,155.58,155.51,10.22]
[1748741722687,14.46011788,155.57,155.51,10.22]
[1748741722891,22.39686011,155.62,155.52,18.64964886]
[1748741723102,14.46011788,155.59,155.52,18.64964886]
[1748741723806,14.46011788,155.58,155.52,18.64964886]
[1748741724194,14.46011788,155.59,155.53,22.50369703]
[1748741725881,14.46011788,155.55,155.53,6.42962772]
[1748741726987,14.46011788,155.56,155.53,6.42962772]
[1748741727798,14.46011788,155.57,155.53,6.42962772]
[1748741728601,14.46011788,155.57,155.53,22.50369703]
[1748741729382,28.56440018,155.63,155.54,18.64964886]
[1748741729608,14.46011788,155.6,155.56,26.0]
[1748741729798,14.46011788,155.6,155.57,10.4]
[1748741730899,68.24440018,155.63,155.57,10.4]
[1748741731103,14.46011788,155.61,155.57,10.4]
[1748741731309,39.68,155.64,155.57,10.4]
[1748741731510,14.46011788,155.61,155.57,10.4]
[1748741731810,14.46011788,155.6,155.58,6.42756138]
[1748741732419,14.46011788,155.61,155.58,6.42756138]
[1748741733118,14.46011788,155.64,155.58,22.49646483]
[1748741733413,14.46011788,155.62,155.58,6.42756138]
[1748741733627,14.46011788,155.6,155.57,16.82789321]
[1748741733988,14.46011788,155.61,155.57,16.82789321]
[1748741734192,14.46011788,155.6,155.57,16.82789321]
[1748741734394,14.46011788,155.6,155.57,10.4]
[1748741734608,14.46011788,155.59,155.57,10.4]
[1748741734814,14.46011788,155.58,155.57,10.4]
[1748741735291,14.46011788,155.59,155.57,10.4]
[1748741736009,14.46011788,155.58,155.57,10.4]
[1748741736801,14.46011788,155.59,155.57,16.82797454]
[1748741737314,14.46011788,155.6,155.57,16.82797454]
[1748741737696,14.46011788,155.59,155.57,16.82797454]
[1748741738413,14.46011788,155.61,155.57,16.82797454]
[1748741743504,14.46011788,155.6,155.57,16.82797454]
[1748741745713,14.46011788,155.61,155.57,16.82797454]
[1748741746513,14.46011788,155.6,155.57,16.82797454]
[1748741747031,14.46011788,155.6,155.57,10.4]
[1748741748906,14.46011788,155.59,155.57,10.4]
[1748741749440,14.46011788,155.6,155.57,10.4]
[1748741749811,14.46011788,155.59,155.57,10.4]
[1748741750315,6.42607071,155.62,155.57,10.4]
[1748741750513,14.46011788,155.6,155.57,16.8278962]
[1748741753122,46.02522102,155.64,155.57,16.8278962]
[1748741753311,14.46011788,155.6,155.57,16.8278962]
[1748741756514,39.58,155.64,155.57,16.8278962]
[1748741756515,14.46011788,155.61,155.57,16.8278962]
[1748741758428,14.46011788,155.63,155.57,16.8278962]
[1748741758733,14.46011788,155.65,155.58,18.64964886]
[1748741759033,14.46011788,155.64,155.58,18.64964886]
[1748741760030,14.46011788,155.64,155.59,6.42714827]
[1748741761432,14.46011788,155.65,155.6,18.64964886]
[1748741761641,6.42313283,155.69,155.6,18.64964886]
[1748741761950,14.46011788,155.66,155.61,6.42632221]
[1748741762119,14.46011788,155.65,155.62,10.32]
[1748741762636,6.42348215,155.68,155.62,10.32]
[1748741762819,6.4231188,155.69,155.62,10.32]
[1748741763138,14.46011788,155.67,155.62,10.32]
[1748741763319,32.42249506,155.71,155.62,10.32]
[1748741763521,14.46011788,155.69,155.63,18.64964886]
[1748741763728,1.5983,155.74,155.66,26.0]
[1748741764036,14.46011788,155.72,155.67,16.74384531]
[1748741764428,14.46011788,155.7,155.67,16.74384531]
[1748741765018,14.46011788,155.69,155.67,10.32]
[1748741766115,14.46011788,155.7,155.67,10.32]
[1748741766430,14.46011788,155.69,155.67,10.32]
[1748741768044,14.46011788,155.7,155.67,16.74374308]
[1748741768229,14.46011788,155.7,155.67,10.32]
[1748741768957,14.46011788,155.7,155.67,16.74376696]
[1748741769643,14.46011788,155.7,155.67,36.32]
[1748741772245,14.46011788,155.7,155.67,42.74377012]
[1748741772841,14.46011788,155.69,155.67,10.32]
[1748741773157,39.54,155.74,155.67,10.32]
[1748741773158,14.46011788,155.68,155.67,10.32]
[1748741775525,14.46011788,155.68,155.63,10.32]
[1748741775726,14.46011788,155.64,155.63,10.32]
[1748741776539,14.46011788,155.65,155.63,10.32]
[1748741778050,14.08992212,155.68,155.63,10.32]
[1748741778051,14.46011788,155.66,155.63,16.74539783]
[1748741780851,14.46011788,155.66,155.63,10.32]
[1748741781242,14.46011788,155.65,155.63,10.32]
[1748741785533,14.46011788,155.64,155.63,10.32]
[1748741786532,20.8852014,155.64,155.63,10.32]
[1748741787134,20.8852014,155.64,155.59,10.32]
[1748741787335,14.46011788,155.6,155.59,10.32]
[1748741787958,14.46011788,155.61,155.59,10.32]
[1748741791047,14.46011788,155.62,155.59,16.74704962]
[1748741791852,14.46011788,155.63,155.59,16.74704962]
[1748741792451,14.46011788,155.64,155.59,16.74704962]
[1748741793460,26.0,155.68,155.59,16.74704962]
[1748741793664,26.0,155.68,155.6,44.64964886]
[1748741793665,14.46011788,155.66,155.6,44.64964886]
[1748741794179,39.42,155.69,155.6,44.64964886]
[1748741794347,14.46011788,155.67,155.6,44.64964886]
[1748741794544,14.46011788,155.66,155.61,0.14216157]
[1748741795139,14.46011788,155.66,155.62,6.42590926]
[1748741797563,13.96011788,155.66,155.64,6.42508352]
[1748741797767,45.86261655,155.7,155.64,6.42508352]
[1748741797948,14.46011788,155.66,155.64,6.42508352]
[1748741798161,45.86261655,155.7,155.64,6.42508352]
[1748741798358,14.46011788,155.66,155.64,6.42508352]
[1748741799868,12.89473546,155.71,155.64,6.42508352]
[1748741800182,14.46011788,155.69,155.64,6.42508352]
[1748741801067,14.46011788,155.69,155.64,22.48779233]
[1748741801447,14.46011788,155.7,155.64,22.48779233]
[1748741802002,14.46011788,155.7,155.65,18.64964886]
[1748741802846,14.46011788,155.71,155.65,18.64964886]
[1748741803983,14.46011788,155.71,155.66,6.42425799]
[1748741804744,14.46011788,155.7,155.66,6.42425799]
[1748741804984,14.46011788,155.68,155.66,6.42425799]
[1748741806072,14.46011788,155.68,155.64,25.07473238]
[1748741806661,14.46011788,155.66,155.64,6.42508352]
[1748741808682,14.46011788,155.67,155.64,6.42508352]
[1748741808863,14.46011788,155.68,155.64,6.42508352]
[1748741812464,14.46011788,155.67,155.64,6.42508352]
[1748741820681,14.46011788,155.67,155.63,42.66540721]
[1748741820862,14.46011788,155.64,155.63,10.24]
[1748741822587,1.5195,155.68,155.63,10.24]
[1748741822890,6.4222949,155.71,155.63,16.66543812]
[1748741823192,14.46011788,155.68,155.63,16.66543812]
[1748741823365,14.46011788,155.68,155.63,42.66543812]
[1748741823974,14.46011788,155.69,155.63,42.66543812]
[1748741825397,14.46011788,155.68,155.63,42.66543812]
[1748741826595,14.46011788,155.67,155.63,42.66543812]
[1748741827573,14.46011788,155.65,155.63,42.66543812]
[1748741827909,0.28432314,155.71,155.6,96.02658006]
[1748741827910,14.46011788,155.64,155.6,96.02658006]
[1748741828071,14.46011788,155.61,155.6,6.42658006]
[1748741829268,14.46011788,155.61,155.59,16.66700067]
[1748741829465,6.42515731,155.64,155.59,16.66700067]
[1748741829466,14.46011788,155.6,155.59,16.66700067]
[1748741830597,14.46011788,155.61,155.59,16.66700067]
[1748741834699,14.46011788,155.6,155.59,10.24]
[1748741839680,14.46011788,155.61,155.59,16.66714827]
[1748741840001,14.46011788,155.63,155.59,16.66714827]
[1748741840209,14.46011788,155.64,155.59,16.66714827]
[1748741840587,14.46011788,155.65,155.6,18.64964886]
[1748741841220,14.46011788,155.65,155.61,6.42632221]
[1748741842031,14.46011788,155.64,155.61,6.42632221]
[1748741846495,14.46011788,155.65,155.61,6.42632221]
[1748741847812,14.46011788,155.66,155.61,22.49212774]
[1748741850399,14.46011788,155.67,155.62,18.64964886]
[1748741851523,14.46011788,155.67,155.63,6.42549636]
[1748741851738,14.46011788,155.67,155.64,10.26]
[1748741853920,14.46011788,155.67,155.65,6.42467073]
[1748741854710,14.46011788,155.68,155.65,6.42467073]
[1748741854917,3.65123404,155.71,155.65,22.48634756]
[1748741854918,14.46011788,155.7,155.65,22.48634756]
[1748741855529,14.46011788,155.69,155.65,22.48634756]
[1748741856805,3.65123404,155.71,155.66,18.64964886]
[1748741857004,14.46011788,155.7,155.66,18.64964886]
[1748741857931,14.46011788,155.7,155.67,6.42384531]
[1748741859514,14.46011788,155.69,155.67,6.42384531]
[1748741863634,14.46011788,155.7,155.67,6.42384531]
[1748741863840,14.46011788,155.69,155.66,18.64964886]
[1748741864063,26.0,155.66,155.57,6.42797454]
[1748741864351,14.46011788,155.61,155.57,6.42797454]
[1748741864522,14.46011788,155.61,155.58,10.24]
[1748741864727,14.46011788,155.63,155.58,10.24]
[1748741865047,79.90011788,155.68,155.59,18.79181043]
[1748741865048,14.46011788,155.65,155.59,18.79181043]
[1748741865338,14.46011788,155.64,155.59,18.79181043]
[1748741865540,14.46011788,155.64,155.6,6.42673521]
[1748741869253,11.56977383,155.69,155.61,18.64964886]
[1748741869413,14.46011788,155.67,155.61,18.64964886]
[1748741869620,11.56977383,155.69,155.64,26.0]
[1748741869621,14.46011788,155.69,155.64,26.0]
[1748741869834,6.420958,155.74,155.65,10.24]
[1748741870016,14.46011788,155.7,155.65,10.24]
[1748741870436,14.46011788,155.71,155.66,18.64964886]
[1748741870623,14.46011788,155.73,155.66,18.64964886]
[1748741871435,3.24466345,155.76,155.66,18.64964886]
[1748741871436,14.46011788,155.72,155.67,6.42384531]
[1748741871643,14.46011788,155.7,155.67,6.42384531]
[1748741871828,14.46011788,155.76,155.65,16.66453296]
[1748741871829,14.46011788,155.68,155.65,16.66453296]
[1748741874433,14.46011788,155.67,155.65,10.24]
[1748741874637,6.42178268,155.72,155.65,16.66462446]
[1748741874841,14.46011788,155.69,155.65,16.66462446]
[1748741878125,14.46011788,155.68,155.65,10.24]
[1748741878843,14.46011788,155.68,155.65,16.66460433]
[1748741879025,14.46011788,155.69,155.65,16.66460433]
[1748741881448,14.23199788,155.69,155.65,16.66460433]
[1748741884050,14.46011788,155.7,155.65,16.66460433]
[1748741885147,14.46011788,155.71,155.65,16.66460433]
[1748741885650,14.46011788,155.71,155.66,18.64964886]
[1748741885842,14.46011788,155.73,155.67,26.0]
[1748741886952,14.46011788,155.72,155.68,6.42343268]
[1748741888840,14.46011788,155.7,155.66,6.42425799]
[1748741889030,14.46011788,155.68,155.65,106.264544]
[1748741889357,14.46011788,155.68,155.65,16.664544]
[1748741890038,14.46011788,155.68,155.65,10.24]
[1748741890446,14.46011788,155.67,155.65,10.24]
[1748741891253,6.42262969,155.7,155.65,10.24]
[1748741891254,14.46011788,155.66,155.65,10.24]
[1748741892146,14.46011788,155.67,155.65,10.24]
[1748741893552,14.46011788,155.66,155.61,10.28]
[1748741893735,14.46011788,155.62,155.61,10.28]
[1748741894560,14.46011788,155.63,155.61,10.28]
[1748741894934,14.46011788,155.62,155.61,10.28]
[1748741895335,14.46011788,155.62,155.58,98.9274599]
[1748741895562,14.46011788,155.6,155.58,98.9274599]
[1748741896169,14.46011788,155.63,155.58,98.9274599]
[1748741896349,14.46011788,155.62,155.58,98.9274599]
[1748741896868,14.46011788,155.59,155.58,92.5]
[1748741897457,14.46011788,155.6,155.58,92.5]
[1748741898448,14.46011788,155.59,155.57,10.28]
[1748741898648,14.46011788,155.58,155.57,10.28]
[1748741898863,14.46011788,155.59,155.57,10.28]
[1748741899556,14.46011788,155.58,155.57,10.28]
[1748741901368,14.46011788,155.59,155.57,16.70791005]
[1748741901670,53.15262318,155.66,155.57,16.70791005]
[1748741901671,14.46011788,155.6,155.57,16.70791005]
[1748741901876,53.29478475,155.66,155.57,16.70791005]
[1748741901877,27.29478475,155.66,155.57,16.70791005]
[1748741902081,14.46011788,155.64,155.58,18.64964886]
[1748741902962,1.59,155.66,155.58,18.64964886]
[1748741903171,14.46011788,155.64,155.58,18.64964886]
[1748741903372,14.46011788,155.64,155.6,18.64964886]
[1748741904766,14.46011788,155.64,155.61,6.42632221]
[1748741905868,1.59,155.66,155.61,6.42632221]
[1748741906192,14.46011788,155.64,155.61,6.42632221]
[1748741909686,14.46011788,155.64,155.6,18.64964886]
[1748741911296,14.46011788,155.64,155.61,6.42632221]
[1748741914699,22.40550729,155.68,155.61,6.42632221]
[1748741915006,14.46011788,155.64,155.61,6.42632221]
[1748741923099,6.42313332,155.69,155.61,6.42632221]
[1748741923400,14.46011788,155.66,155.62,28.88964886]
[1748741924501,39.42,155.69,155.62,28.88964886]
[1748741924683,14.46011788,155.66,155.62,28.88964886]
[1748741925102,14.46011788,155.66,155.63,6.42549636]
[1748741926484,14.46011788,155.65,155.63,6.42549636]
[1748741942709,9.29832212,155.65,155.63,6.42549636]
[1748741945019,9.29832212,155.64,155.62,16.66578713]
[1748741945216,9.29832212,155.63,155.62,16.66578713]
[1748741945399,9.29832212,155.63,155.62,10.24]
[1748741948016,9.29832212,155.63,155.58,106.26723145]
[1748741948317,9.29832212,155.59,155.58,10.24]
[1748741948709,14.5439834,155.59,155.58,10.24]
[1748741950616,14.5439834,155.59,155.55,6.42880102]
[1748741952149,14.5439834,155.56,155.54,42.66917071]
[1748741952301,14.5439834,155.56,155.54,10.24]
[1748741952913,14.5439834,155.55,155.54,10.24]
[1748741961931,6.42722304,155.59,155.54,10.24]
[1748741962243,14.5439834,155.55,155.54,10.24]
[1748741965425,14.5439834,155.55,155.5,18.31115727]
[1748741965624,14.5439834,155.52,155.5,18.31115727]
[1748741966844,14.5439834,155.53,155.5,18.31115727]
[1748741968367,14.5439834,155.52,155.5,18.31115727]
[1748741968656,11.50185932,155.58,155.5,18.31115727]
[1748741968657,14.5439834,155.53,155.5,18.31115727]
[1748741968826,14.75253234,155.58,155.51,44.64964886]
[1748741968827,11.50185932,155.58,155.51,44.64964886]
[1748741969026,14.5439834,155.59,155.52,0.28432314]
[1748741969846,14.5439834,155.59,155.55,18.64964886]
[1748741970056,14.5439834,155.6,155.57,6.42797454]
[1748741970629,9.30419361,155.6,155.57,6.42797454]
[1748741970958,9.30419361,155.62,155.57,6.42797454]
[1748741971168,9.30419361,155.63,155.58,18.64964886]
[1748741971930,6.42470635,155.65,155.58,18.64964886]
[1748741971931,9.30419361,155.62,155.58,18.64964886]
[1748741972140,9.30419361,155.62,155.58,25.07715781]
[1748741972668,14.5346615,155.62,155.58,25.07715781]
[1748741972830,14.5346615,155.6,155.56,10.24]
[1748741973545,14.5346615,155.59,155.56,10.24]
[1748741976384,14.5346615,155.58,155.56,10.24]
[1748741976556,14.5346615,155.57,155.56,10.24]
[1748741977973,14.5346615,155.58,155.56,10.24]
[1748741979893,14.5346615,155.57,155.56,10.24]
[1748741980715,14.5346615,155.57,155.52,16.66993204]
[1748741980874,14.5346615,155.54,155.52,16.66993204]
[1748741982090,14.5346615,155.54,155.52,6.42993204]
[1748741982392,14.5346615,155.54,155.52,16.66993204]
[1748741984604,14.5346615,155.53,155.52,10.24]
[1748741984812,14.5346615,155.53,155.49,6.43095733]
[1748741984973,14.5346615,155.51,155.48,16.67153692]
[1748741985989,45.8478581,155.58,155.49,18.64964886]
[1748741986192,14.5346615,155.55,155.49,18.64964886]
[1748741986399,14.5346615,155.56,155.52,18.64964886]
[1748741986695,14.5346615,155.58,155.53,10.38216157]
[1748741987102,14.5346615,155.58,155.53,10.24]
[1748741987390,14.5346615,155.58,155.54,18.64964886]
[1748741987977,14.5346615,155.58,155.55,6.42880102]
[1748741988181,14.5346615,155.57,155.55,6.42880102]
[1748741988585,14.5346615,155.57,155.54,6.42905618]
[1748741989188,14.5346615,155.58,155.54,25.07870504]
[1748741990678,14.5346615,155.57,155.54,6.42905618]
[1748741993913,14.5346615,155.57,155.53,10.24]
[1748741994080,14.5346615,155.54,155.53,10.24]
[1748741995398,14.5346615,155.54,155.5,6.43078732]
[1748741995703,14.5346615,155.52,155.49,16.67116539]
[1748741996911,14.5346615,155.54,155.5,18.64964886]
[1748741997247,14.5346615,155.54,155.51,6.43045463]
[1748741997384,14.5346615,155.53,155.51,6.43045463]
[1748741997784,14.5346615,155.53,155.5,6.43070843]
[1748741998202,14.5346615,155.52,155.5,6.43070843]
[1748741998902,14.5346615,155.53,155.5,6.43070843]
[1748741999899,14.5346615,155.53,155.49,16.67116534]
[1748742000100,14.5346615,155.51,155.49,16.67116534]
[1748742000906,14.5346615,155.52,155.49,16.67116534]
[1748742001885,14.5346615,155.54,155.5,18.64964886]
[1748742003008,14.5346615,155.52,155.49,16.67116534]
[1748742004005,14.5346615,155.51,155.49,10.24]
[1748742005199,14.5346615,155.51,155.49,16.67116207]
[1748742005394,14.5346615,155.52,155.49,16.67116207]
[1748742006113,14.5346615,155.53,155.49,16.67116207]
[1748742006810,14.5346615,155.54,155.5,18.64964886]
[1748742007185,14.5346615,155.54,155.51,6.43045463]
[1748742008417,14.5346615,155.53,155.51,6.43045463]